lending/lending_fUSD_20260306
["ID","MTS","AMOUNT","RATE_DAILY","PERIOD"]
[407847208,1772829039399,-2606.76447874,0.00018681,2]
[407847209,1772829039409,-2046.47179689,0.00018716,2]
[407847210,1772829039418,-541.81,0.00018789,2]
[407847211,1772829039428,-13754.94739738,0.00018794,2]
[407847212,1772829039437,-347.13,0.0001891,2]
[407847213,1772829039450,-876.76,0.00018937,2]
[407847214,1772829039460,-1635.64,0.00018987,120]
[407847215,1772829039470,-19885.49539883,0.00019,2]
[407847216,1772829039479,-195.89,0.00019021,2]
[407847217,1772829039489,-859.6,0.00019045,2]
[407847218,1772829039499,-541.81,0.00019063,2]
[407847219,1772829039508,-1500.0,0.00019068,2]
[407847221,1772829039518,-1500.0,0.00019068,2]
[407847222,1772829039528,-1057.2086331,0.00019068,2]
[407847224,1772829039537,-2606.76447874,0.00019087,2]
[407847225,1772829039546,-2208.4280907,0.00019136,2]
[407847226,1772829039556,-3000.0,0.00019178,2]
[407847227,1772829039566,-3000.0,0.00019178,7]
[407847228,1772829039575,-778.32,0.00019178,30]
[407847229,1772829039585,-150.0,0.00019178,2]
[407847230,1772829039594,-780.83,0.00019179,2]
[407847231,1772829039603,-347.13,0.0001918,2]
[407847232,1772829039613,-9547.53,0.0001918,2]
[407847233,1772829039623,-99460.3105431,0.00019184,2]
[407847234,1772829039632,-500.0,0.00019205,2]
[407847235,1772829039643,-876.76,0.00019211,2]
[407847236,1772829039653,-168.0,0.00019284,2]
[407847237,1772829039663,-168.0,0.00019307,2]
[407847238,1772829039675,-168.0,0.00019312,2]
[407847239,1772829039686,-10413.31,0.00019322,7]
[407847240,1772829039698,-11046.28,0.00019322,7]
[407847241,1772829039707,-1104.63,0.00019322,7]
[407847242,1772829039717,-541.84434397,0.00019337,2]
[407847243,1772829039727,-168.0,0.00019342,2]
[407847244,1772829039739,-13754.94739738,0.00019347,2]
[407847245,1772829039749,-168.0,0.00019447,2]
[407847246,1772829039760,-347.13,0.0001945,2]
[407847247,1772829039770,-780.83,0.00019453,2]
[407847248,1772829039781,-876.76,0.00019485,2]
[407847249,1772829039791,-2606.76447874,0.00019494,2]
[407847250,1772829039801,-1027.43695294,0.000196,2]
[407847251,1772829039811,-1028.25023728,0.000196,2]
[407847252,1772829039820,-1084.65195306,0.000196,2]
[407847253,1772829039830,-1131.23709178,0.000196,2]
[407847254,1772829039843,-1028.57687826,0.000196,2]
[407847255,1772829039853,-1136.81136584,0.000196,2]
[407847256,1772829039863,-1452.28108697,0.000196,2]
[407847257,1772829039874,-2000.0,0.00019616,2]
[407847258,1772829039884,-1778.57186039,0.00019616,2]
[407847259,1772829039894,-1600.0,0.00019637,2]
[407847260,1772829039905,-2148.8308,0.00019674,2]
[407847261,1772829039915,-168.0,0.00019688,2]
[407847262,1772829039926,-5000.0,0.000197,3]
[407847263,1772829039936,-347.13,0.0001972,2]
[407847264,1772829039946,-250.0,0.00019726,2]
[407847265,1772829039957,-780.83,0.00019727,2]
[407847266,1772829039967,-876.76,0.00019758,2]
[407847267,1772829039977,-397.65453041,0.00019764,2]
[407847268,1772829039987,-184.94185274,0.00019773,2]
[407847269,1772829039997,-500.0,0.00019773,2]
[407847270,1772829040007,-446.12402339,0.00019773,2]
[407847271,1772829040016,-500.0,0.00019773,2]
[407847272,1772829040026,-500.0,0.00019773,2]
[407847273,1772829040036,-500.0,0.00019773,2]
[407847274,1772829040046,-500.0,0.00019773,2]
[407847275,1772829040056,-500.0,0.00019773,2]
[407847276,1772829040066,-500.0,0.00019773,2]
[407847277,1772829040076,-500.0,0.00019773,2]
[407847278,1772829040086,-500.0,0.00019773,2]
[407847279,1772829040096,-500.0,0.00019773,2]
[407847280,1772829040105,-500.0,0.00019773,2]
[407847281,1772829040115,-500.0,0.00019773,2]
[407847282,1772829040125,-629479.2189,0.00019774,2]
[407847283,1772829040135,-9500.0,0.000198,7]
[407847284,1772829040145,-141628.69642043,0.0001981,2]
[407847285,1772829040155,-172.74325605,0.00019843,2]
[407847286,1772829040165,-160.0,0.00019843,2]
[407847287,1772829040176,-665.0,0.00019863,2]
[407847288,1772829040192,-25000.0,0.00019874,3]
[407847289,1772829040203,-25000.0,0.00019882,3]
[407847290,1772829040213,-195.89,0.00019886,2]
[407847291,1772829040222,-1000.0,0.00019888,2]
[407847292,1772829040235,-32912.143,0.00019888,2]
[407847293,1772829040245,-25000.0,0.00019891,3]
[407847294,1772829040255,-25000.0,0.000199,3]
[407847295,1772829040264,-172.74325605,0.000199,3]
[407847296,1772829040274,-5000.0,0.000199,2]
[407847297,1772829040284,-1900.0,0.000199,7]
[407847298,1772829040293,-2606.76447874,0.000199,2]
[407847299,1772829040304,-13754.94739738,0.000199,2]
[407847300,1772829040314,-7809.99,0.00019902,7]
[407847301,1772829040323,-8284.71,0.00019902,7]
[407847302,1772829040333,-828.47,0.00019902,7]
[407847303,1772829040342,-168.0,0.00019906,2]
[407847304,1772829040352,-168.0,0.00019966,2]
[407847306,1772829040362,-785.0,0.00019969,2]
[407847308,1772829040371,-639.90470534,0.0001997,2]
[407847309,1772829040381,-573.58002767,0.00019973,2]
[407847310,1772829040390,-534.41020395,0.0001998,2]
[407847311,1772829040401,-347.13,0.0001999,2]
[407847312,1772829040411,-397.65453041,0.0001999,2]
[407847313,1772829040421,-151.0,0.00019997,2]
[407847314,1772829040430,-151.0,0.00019997,2]
[407847315,1772829040440,-300.0,0.00019999,2]
[407847316,1772829040449,-21324.5855211,0.00019999,2]
[407847317,1772829040459,-150.0,0.00019999,2]
[407847318,1772829040469,-263.76858852,0.00019999,2]
[407847319,1772829040479,-3506335.4943268,0.0002,2]
[407847320,1772829040489,-2953.57487299,0.0002,7]
[407847321,1772829040498,-132261.11230833,0.0002,2]
[407847322,1772829040508,-501.242938,0.0002,10]
[407847323,1772829040517,-532.21530917,0.0002,7]
[407847324,1772829040527,-1435.21,0.0002,120]
[407847325,1772829040536,-12979.23134695,0.0002,2]
[407847326,1772829040545,-724.51160049,0.0002,120]
[407847327,1772829040555,-1834.01186954,0.0002,120]
[407847328,1772829040565,-602.13828263,0.0002,2]
[407847329,1772829040574,-301.26432731,0.0002,5]
[407847330,1772829040584,-348.35457208,0.0002,2]
[407847331,1772829040594,-836.3,0.0002,7]
[407847332,1772829040603,-1271.59435,0.0002,2]
[407847333,1772829040617,-825.0,0.0002,30]
[407847334,1772829040626,-150.0,0.0002,20]
[407847335,1772829040635,-780.83,0.00020001,2]
[407847336,1772829040645,-876.76,0.00020032,2]
[407847337,1772829040655,-220.0,0.00020046,2]
[407847338,1772829040664,-220.0,0.00020092,2]
[407847339,1772829040674,-220.0,0.0002011,2]
[407847340,1772829040687,-2500.0,0.00020164,2]
[407847341,1772829040698,-785.0,0.00020205,2]
[407847342,1772829040708,-168.0,0.00020232,2]
[407847343,1772829040718,-785.0,0.0002024,2]
[407847344,1772829040728,-347.13,0.0002026,2]
[407847345,1772829040739,-220.0,0.00020269,2]
[407847346,1772829040750,-780.83,0.00020275,2]
[407847347,1772829040760,-876.76,0.00020306,2]
[407847348,1772829040772,-1000.0,0.00020321,2]
[407847349,1772829040782,-205.88057451,0.00020321,2]
[407847350,1772829040792,-1000.0,0.00020321,2]
[407847351,1772829040802,-1000.0,0.00020321,2]
[407847352,1772829040812,-1000.0,0.00020321,2]
[407847353,1772829040823,-1000.0,0.00020321,2]
[407847354,1772829040834,-349.85488597,0.00020321,2]
[407847355,1772829040845,-494.64624274,0.00020321,2]
[407847356,1772829040854,-1000.0,0.00020321,2]
[407847357,1772829040865,-1000.0,0.00020321,2]
[407847358,1772829040874,-1000.0,0.00020321,2]
[407847359,1772829040885,-235.21838039,0.00020321,2]
[407847360,1772829040895,-206.0,0.000204,120]
[407847361,1772829040906,-168.0,0.00020421,2]
[407847362,1772829040915,-168.0,0.00020457,2]
[407847363,1772829040925,-5206.66,0.00020482,7]
[407847364,1772829040934,-5523.14,0.00020482,7]
[407847365,1772829040944,-552.32,0.00020482,7]
[407847366,1772829040955,-347.13,0.0002053,2]
[407847367,1772829040965,-780.83,0.00020548,2]
[407847368,1772829040975,-876.76,0.0002058,2]
[407847369,1772829040986,-785.0,0.00020693,2]
[407847370,1772829040995,-2500.0,0.00020712,2]
[407847371,1772829041009,-1000.0,0.00020743,2]
[407847372,1772829041018,-168.0,0.0002075,2]
[407847373,1772829041028,-195.89,0.0002075,2]
[407847374,1772829041037,-347.13,0.000208,2]
[407847375,1772829041046,-168.0,0.00020811,2]
[407847376,1772829041056,-557.56,0.00020822,2]
[407847377,1772829041065,-168.0,0.00020857,2]
[407847378,1772829041074,-1500.0,0.00020868,2]
[407847379,1772829041084,-1000.0,0.00020868,2]
[407847380,1772829041093,-1500.0,0.00020868,2]
[407847381,1772829041103,-1134.58548457,0.00020868,2]
[407847382,1772829041112,-1489.71509886,0.00020868,2]
[407847383,1772829041123,-1500.0,0.00020868,2]
[407847384,1772829041132,-1442.99956491,0.00020868,2]
[407847385,1772829041142,-400.0,0.00021,2]
[407847386,1772829041151,-168.0,0.00021005,2]
[407847387,1772829041160,-347.13,0.0002107,2]
[407847388,1772829041169,-785.0,0.00021117,2]
[407847389,1772829041179,-785.0,0.00021163,2]
[407847390,1772829041188,-573.31615994,0.00021182,7]
[407847391,1772829041197,-2208.4280907,0.00021201,2]
[407847392,1772829041207,-166.07,0.00021261,2]
[407847393,1772829041216,-99460.3105431,0.00021273,2]
[407847394,1772829041226,-347.13,0.0002134,2]
[407847395,1772829041236,-2000.0,0.00021416,2]
[407847396,1772829041245,-2000.0,0.00021416,2]
[407847397,1772829041255,-2000.0,0.00021416,2]
[407847398,1772829041265,-206.0,0.0002142,120]
[407847399,1772829041274,-860.45255238,0.0002145,2]
[407847400,1772829041284,-518.25255237,0.0002145,2]
[407847401,1772829041293,-2091.727653,0.0002147,7]
[407847402,1772829041302,-348.35457208,0.00021579,2]
[407847403,1772829041311,-347.13,0.0002161,2]
[407847404,1772829041321,-195.89,0.00021615,2]
[407847405,1772829041330,-6176.85,0.00021626,2]
[407847406,1772829041339,-1474.96721569,0.00021803,8]
[407847407,1772829041349,-1600.0,0.00021819,2]
[407847408,1772829041358,-347.13,0.0002188,2]
[407847409,1772829041369,-181.37,0.00021918,2]
[407847410,1772829041378,-1680.57628362,0.00021964,2]
[407847411,1772829041390,-2500.0,0.00021964,2]
[407847412,1772829041399,-2500.0,0.00021964,2]
[407847413,1772829041408,-503.71,0.00022,30]
[407847414,1772829041419,-21324.5855211,0.00022037,2]
[407847415,1772829041428,-730.407018,0.00022082,30]
[407847416,1772829041438,-778.32,0.00022114,30]
[407847417,1772829041447,-500.0,0.00022137,2]
[407847418,1772829041457,-347.13,0.0002215,2]
[407847419,1772829041466,-653.33,0.00022279,2]
[407847420,1772829041476,-215.83,0.00022403,2]
[407847421,1772829041486,-347.26,0.0002242,2]
[407847422,1772829041496,-825.0,0.00022474,30]
[407847423,1772829041505,-195.89,0.00022479,2]
[407847424,1772829041515,-206.0,0.00022491,120]
[407847425,1772829041524,-714.62773312,0.00022512,2]
[407847426,1772829041533,-3000.0,0.00022512,2]
[407847427,1772829041542,-2000.0,0.00022529,2]
[407847428,1772829041551,-2000.0,0.00022529,2]
[407847429,1772829041560,-2000.0,0.00022529,2]
[407847430,1772829041569,-2000.0,0.00022529,2]
[407847431,1772829041579,-2000.0,0.00022529,2]
[407847432,1772829041588,-2000.0,0.00022529,2]
[407847433,1772829041597,-2000.0,0.00022529,2]
[407847434,1772829041606,-2000.0,0.00022529,2]
[407847435,1772829041616,-2000.0,0.00022529,2]
[407847436,1772829041625,-2000.0,0.00022529,2]
[407847437,1772829041634,-2000.0,0.00022529,2]
[407847438,1772829041644,-2000.0,0.00022529,2]
[407847439,1772829041653,-2000.0,0.00022529,2]
[407847440,1772829041662,-2000.0,0.00022529,2]
[407847441,1772829041672,-2000.0,0.00022529,2]
[407847442,1772829041682,-2000.0,0.00022529,2]
[407847443,1772829041693,-159.50443634,0.00022598,2]
[407847444,1772829041703,-1000.0,0.00022629,2]
[407847445,1772829041713,-9814.08064636,0.00023,2]
[407847446,1772829041722,-450.0,0.00023,2]
[407847447,1772829041733,-160.0,0.00023,2]
[407847448,1772829041743,-1088.87470879,0.0002306,2]
[407847449,1772829041754,-348.35457208,0.00023158,2]
[407847450,1772829041763,-382.59211603,0.00023226,10]
[407847451,1772829041775,-3422.92,0.00023233,2]
[407847452,1772829041784,-500.0,0.00023315,2]
[407847453,1772829041794,-195.89,0.00023344,2]
[407847454,1772829041803,-596.0,0.00023353,2]
[407847455,1772829041812,-150.0,0.00023353,2]
[407847456,1772829041821,-150.0,0.00023353,2]
[407847457,1772829041831,-150.0,0.00023353,2]
[407847458,1772829041840,-150.0,0.00023353,2]
[407847459,1772829041850,-150.0,0.00023353,2]
[407847460,1772829041859,-211.0,0.00023353,2]
[407847461,1772829041868,-153.14089528,0.00023777,2]
[407847462,1772829041877,-160.0,0.00024,7]
[407847463,1772829041887,-1600.0,0.00024001,2]
[407847464,1772829041896,-21324.5855211,0.00024075,2]
[407847465,1772829041905,-481.0,0.00024152,2]
[407847466,1772829041914,-181.0,0.00024152,2]
[407847467,1772829041923,-2000.0,0.00024199,2]
[407847468,1772829041933,-2000.0,0.00024199,2]
[407847469,1772829041943,-2000.0,0.00024199,2]
[407847470,1772829041952,-2000.0,0.00024199,2]
[407847471,1772829041961,-2000.0,0.00024199,2]
[407847472,1772829041971,-2000.0,0.00024199,2]
[407847473,1772829041980,-2000.0,0.00024199,2]
[407847474,1772829041990,-2000.0,0.00024199,2]
[407847475,1772829041999,-2000.0,0.00024199,2]
[407847476,1772829042009,-2000.0,0.00024199,2]
[407847477,1772829042018,-2000.0,0.00024199,2]
[407847478,1772829042028,-2000.0,0.00024199,2]
[407847479,1772829042037,-2000.0,0.00024199,2]
[407847480,1772829042046,-2000.0,0.00024199,2]
[407847481,1772829042056,-2000.0,0.00024199,2]
[407847482,1772829042066,-2000.0,0.00024199,2]
[407847483,1772829042075,-2000.0,0.00024199,2]
[407847484,1772829042086,-2000.0,0.00024199,2]
[407847485,1772829042096,-2000.0,0.00024199,2]
[407847486,1772829042106,-2000.0,0.00024199,2]
[407847487,1772829042117,-2000.0,0.00024199,2]
[407847488,1772829042126,-2000.0,0.00024199,2]
[407847489,1772829042136,-2000.0,0.00024199,2]
[407847490,1772829042146,-2000.0,0.00024199,2]
[407847491,1772829042165,-2000.0,0.00024199,2]
[407847492,1772829042176,-2000.0,0.00024199,2]
[407847493,1772829042186,-2000.0,0.00024199,2]
[407847495,1772829042197,-2000.0,0.00024199,2]
[407847496,1772829042207,-2000.0,0.00024199,2]
[407847498,1772829042217,-2000.0,0.00024199,2]
[407847499,1772829042227,-2000.0,0.00024199,2]
[407847500,1772829042237,-2000.0,0.00024199,2]
[407847501,1772829042248,-2000.0,0.00024199,2]
[407847503,1772829042259,-2000.0,0.00024199,2]
[407847504,1772829042268,-2000.0,0.00024199,2]
[407847505,1772829042278,-2000.0,0.00024199,2]
[407847506,1772829042290,-2000.0,0.00024199,2]
[407847507,1772829042299,-1000.0,0.00024384,2]
[407847508,1772829042309,-150.0,0.00024643,2]
[407847509,1772829042319,-2000.0,0.00024657,2]
[407847510,1772829042328,-165.0,0.00024658,2]
[407847511,1772829042340,-150.0,0.00024658,2]
[407847512,1772829042350,-1000.0,0.00024658,2]
[407847513,1772829042360,-348.35457208,0.00024737,2]
[407847514,1772829042370,-1943.45,0.0002475,30]
[407847515,1772829042380,-500.0,0.00024899,2]
[407847516,1772829042389,-500.0,0.00024899,2]
[407847517,1772829042399,-500.0,0.00024899,2]
[407847518,1772829042408,-500.0,0.00024899,2]
[407847519,1772829042418,-500.0,0.00024899,2]
[407847520,1772829042428,-500.0,0.00024899,2]
[407847521,1772829042437,-500.0,0.00024899,2]
[407847522,1772829042447,-500.0,0.00024899,2]
[407847523,1772829042456,-500.0,0.00024899,2]
[407847524,1772829042466,-500.0,0.00024899,2]
[407847525,1772829042476,-648.56,0.00024899,2]
[407847526,1772829042487,-648.56,0.00024899,2]
[407847527,1772829042496,-500.0,0.00024899,2]
[407847528,1772829042506,-500.0,0.00024899,2]
[407847529,1772829042516,-323.2,0.00024899,2]
[407847530,1772829042526,-300.0,0.00024899,10]
[407847531,1772829042536,-172.74325605,0.000249,3]
[407847532,1772829042546,-449231.81914,0.000249,3]
[407847533,1772829042556,-1000.0,0.00024932,2]
[407847534,1772829042565,-825.0,0.00024948,60]
[407847535,1772829042575,-160.0,0.00025,3]
[407847536,1772829042584,-778.32,0.00025049,30]
[407847537,1772829042593,-1000.0,0.00025205,2]
[407847538,1772829042604,-2000.0,0.00025247,2]
[407847539,1772829042613,-2000.0,0.00025247,2]
[407847540,1772829042623,-2000.0,0.00025247,2]
[407847541,1772829042632,-2000.0,0.00025247,2]
[407847542,1772829042643,-2000.0,0.00025247,2]
[407847543,1772829042652,-2000.0,0.00025247,2]
[407847544,1772829042662,-2000.0,0.00025247,2]
[407847545,1772829042671,-2000.0,0.00025247,2]
[407847546,1772829042681,-2000.0,0.00025247,2]
[407847547,1772829042692,-2000.0,0.00025247,2]
[407847548,1772829042703,-2000.0,0.00025247,2]
[407847549,1772829042712,-2000.0,0.00025247,2]
[407847550,1772829042722,-2000.0,0.00025247,2]
[407847551,1772829042734,-2000.0,0.00025247,2]
[407847552,1772829042744,-2000.0,0.00025247,2]
[407847553,1772829042753,-2000.0,0.00025247,2]
[407847554,1772829042765,-2000.0,0.00025247,2]
[407847555,1772829042775,-2000.0,0.00025247,2]
[407847556,1772829042785,-2000.0,0.00025247,2]
[407847557,1772829042795,-2000.0,0.00025247,2]
[407847558,1772829042804,-2000.0,0.00025247,2]
[407847559,1772829042814,-2000.0,0.00025247,2]
[407847560,1772829042824,-2000.0,0.00025247,2]
[407847561,1772829042833,-2000.0,0.00025247,2]
[407847562,1772829042843,-2000.0,0.00025247,2]
[407847563,1772829042854,-2000.0,0.00025247,2]
[407847564,1772829042864,-266.0,0.00025279,7]
[407847565,1772829042875,-1000.0,0.00025479,2]
[407847566,1772829042885,-411.85,0.00025508,2]
[407847567,1772829042895,-500.0,0.0002557,2]
[407847568,1772829042905,-1332.047401,0.0002557,2]
[407847569,1772829042914,-172.74325605,0.000256,3]
[407847570,1772829042925,-500.0,0.00025753,2]
[407847571,1772829042935,-500.0,0.00025753,2]
[407847572,1772829042945,-500.0,0.00025753,2]
[407847573,1772829042955,-500.0,0.00025753,2]
[407847574,1772829042964,-499.92362241,0.00025753,2]
[407847575,1772829042974,-648.56,0.00025753,2]
[407847576,1772829042986,-500.0,0.00025753,2]
[407847577,1772829042995,-10000.0,0.00025753,120]
[407847578,1772829043005,-10000.0,0.00025753,120]
[407847579,1772829043014,-10000.0,0.00025753,120]
[407847580,1772829043024,-10000.0,0.00025753,120]
[407847581,1772829043033,-1509.57244115,0.00025753,120]
[407847582,1772829043054,-8490.42755885,0.00025753,120]
[407847583,1772829043064,-10000.0,0.00025753,120]
[407847584,1772829043073,-5748.87580163,0.00025753,120]
[407847585,1772829043091,-346.22909034,0.00025753,120]
[407847586,1772829043224,-336.030554,0.00017036,2]
[407847587,1772829043244,-1483.90815077,0.00017036,2]
[407847588,1772829043256,-933.59160758,0.00017036,2]
[407847589,1772829043267,-496.38164708,0.00017036,2]
[407847590,1772829043289,-4341.56449854,0.00017036,2]
[407847591,1772829043299,-2000.0,0.00022529,2]
[407847592,1772829043309,-2000.0,0.00022529,2]
[407847593,1772829043319,-2000.0,0.00022529,2]
[407847594,1772829043330,-3904.89510803,0.00025753,120]
[407847595,1772829043340,-10000.0,0.00025753,120]
[407847596,1772829043353,-10000.0,0.00025753,120]
[407847597,1772829043364,-10000.0,0.00025753,120]
[407847598,1772829043603,-10000.0,0.00025753,120]
[407847599,1772829043613,-10000.0,0.00025753,120]
[407847600,1772829043623,-10000.0,0.00025753,120]
[407847601,1772829043632,-5545.0,0.00025753,120]
[407847602,1772829043642,-1000.0,0.00025753,2]
[407847603,1772829043652,-150.0,0.0002589,2]
[407847604,1772829043662,-330.0,0.00026027,2]
[407847605,1772829043674,-1000.0,0.00026027,2]
[407847606,1772829043686,-21324.5855211,0.00026113,2]
[407847607,1772829043698,-1600.0,0.00026183,120]
[407847608,1772829043708,-503.71,0.00026203,30]
[407847609,1772829043719,-2508.9,0.000263,14]
[407847610,1772829043730,-1000.0,0.00026301,2]
[407847611,1772829043741,-348.35457208,0.00026316,2]
[407847612,1772829043751,-1562.0,0.00026575,2]
[407847614,1772829043761,-594.0,0.00026652,2]
[407847616,1772829043774,-150.0,0.00026652,2]
[407847617,1772829043783,-150.0,0.00026652,2]
[407847618,1772829043797,-150.0,0.00026652,2]
[407847619,1772829043807,-150.0,0.00026652,2]
[407847620,1772829043818,-150.0,0.00026652,2]
[407847621,1772829043829,-205.0,0.00026652,2]
[407847622,1772829043839,-4701.0,0.00026831,2]
[407847623,1772829043849,-1900.0,0.000269,9]
[407847624,1772829043859,-233.0,0.00027084,14]
[407847625,1772829043869,-150.0,0.00027185,2]
[407847626,1772829043879,-177.0,0.00027193,30]
[407847627,1772829043889,-159.50443634,0.00027329,2]
[407847628,1772829043899,-150.0,0.00027369,2]
[407847629,1772829043909,-151.0,0.00027394,7]
[407847630,1772829043920,-335.37764227,0.00027397,2]
[407847631,1772829043931,-300.0,0.00027397,2]
[407847632,1772829043941,-1000.0,0.00027397,20]
[407847633,1772829043951,-13710.71,0.00027397,10]
[407847634,1772829043962,-11425.59,0.00027397,10]
[407847635,1772829043971,-515.61,0.000274,7]
[407847636,1772829043981,-400.01,0.000274,7]
[407847637,1772829043993,-172.74325605,0.000274,7]
[407847638,1772829044003,-825.0,0.00027422,60]
[407847639,1772829044013,-2146.92,0.00027856,2]
[407847640,1772829044022,-348.35457208,0.00027895,7]
[407847641,1772829044033,-778.32,0.00027984,30]
[407847642,1772829044043,-160.0,0.00028,10]
[407847643,1772829044054,-1004.0,0.00028326,10]
[407847644,1772829044064,-439.0,0.00028326,10]
[407847645,1772829044074,-150.188,0.00028452,2]
[407847646,1772829044084,-1279.0,0.00028452,2]
[407847647,1772829044094,-1212.0,0.00028452,2]
[407847648,1772829044104,-922.0,0.00028452,2]
[407847649,1772829044114,-5990.0,0.00028452,2]
[407847650,1772829044124,-3502.0,0.00028452,2]
[407847651,1772829044133,-1042.0,0.00028452,2]
[407847652,1772829044144,-166.34,0.00028493,2]
[407847653,1772829044154,-150.0,0.00028544,2]
[407847655,1772829044163,-4880.697859,0.00028627,30]
[407847656,1772829044173,-185.0,0.00028767,7]
[407847657,1772829044183,-265.0,0.0002885,7]
[407847658,1772829044193,-85779.0,0.000289,2]
[407847659,1772829044204,-3764.0,0.00028971,5]
[407847660,1772829044214,-4183.0,0.00028971,5]
[407847661,1772829044224,-166.0,0.00029191,21]
[407847662,1772829044234,-1704.283042,0.00029442,30]
[407847663,1772829044245,-348.35457208,0.00029474,7]
[407847664,1772829044254,-5532.0,0.000296,3]
[407847665,1772829044265,-439.90525556,0.00029748,2]
[407847666,1772829044275,-151.06985257,0.00029834,30]
[407847667,1772829044284,-825.0,0.00029896,60]
[407847668,1772829044294,-150.0,0.00029971,2]
[407847669,1772829044304,-804.33398658,0.0003,7]
[407847670,1772829044314,-160.0,0.0003,120]
[407847671,1772829044323,-1609.35667931,0.00030106,21]
[407847672,1772829044333,-5532.0,0.000303,5]
[407847673,1772829044343,-503.71,0.00030405,60]
[407847674,1772829044353,-197.95,0.00030411,120]
[407847675,1772829044362,-400.01,0.000308,7]
[407847676,1772829044372,-162.0,0.00030822,14]
[407847679,1772829044382,-232.0,0.00030911,14]
[407847681,1772829044392,-778.32,0.0003092,30]
[407847682,1772829044401,-160.0,0.00031,120]
[407847683,1772829044411,-160.0,0.00031,30]
[407847685,1772829044420,-348.35457208,0.00031053,7]
[407847687,1772829044430,-604.22202447,0.00031384,6]
[407847689,1772829044439,-1584.09355339,0.00031384,2]
[407847691,1772829044449,-802.45306687,0.00031384,2]
[407847693,1772829044459,-150.0,0.00031452,2]
[407847694,1772829044469,-1279.0,0.00031452,2]
[407847695,1772829044478,-1212.0,0.00031452,2]
[407847696,1772829044489,-922.0,0.00031452,2]
[407847697,1772829044499,-5990.0,0.00031452,2]
[407847698,1772829044509,-3502.0,0.00031452,2]
[407847699,1772829044518,-150.0,0.0003147,2]
[407847700,1772829044528,-515.61,0.000316,7]
[407847701,1772829044537,-588.00131862,0.00032,120]
[407847702,1772829044546,-223.88690887,0.00032,120]
[407847703,1772829044555,-1288.22431998,0.00032,120]
[407847704,1772829044566,-406.77579278,0.00032,120]
[407847705,1772829044575,-243.17004353,0.00032,120]
[407847706,1772829044584,-482.51017562,0.00032,120]
[407847707,1772829044594,-915.85637012,0.00032,120]
[407847708,1772829044603,-589.88941501,0.00032,120]
[407847709,1772829044612,-448.38187215,0.00032,120]
[407847710,1772829044621,-159.50443634,0.00032059,2]
[407847711,1772829044630,-825.0,0.0003237,60]
[407847712,1772829044639,-348.35457208,0.00032632,7]
[407847713,1772829044649,-2000.0,0.00032877,2]
[407847714,1772829044659,-514.8198853,0.00032877,2]
[407847715,1772829044669,-2000.0,0.000329,2]
[407847716,1772829044678,-407.29417996,0.00032951,26]
[407847717,1772829044689,-150.0,0.00033,14]
[407847718,1772829044700,-588.00131862,0.00033,120]
[407847719,1772829044710,-223.88690887,0.00033,120]
[407847720,1772829044719,-1288.22431998,0.00033,120]
[407847721,1772829044730,-406.77579278,0.00033,120]
[407847722,1772829044740,-243.17004353,0.00033,120]
[407847723,1772829044752,-482.51017562,0.00033,120]
[407847724,1772829044761,-915.85637012,0.00033,120]
[407847725,1772829044771,-589.88941501,0.00033,120]